Workbook

Sheet INSTRUCTION
B98: SAMPLE DATA I
B99: Carrier Two-Speed Electric Heat Pump: SYNERGY 38YDA
P125: Indoor Fan Power | R125: 510 | S125: W
H127: Capacity and Power data at various temperatures and rated flow rate. This data is | P127: Capacity and Power Data at various supply air flow rates and rated temperatures.
B128: Manufacturer's Data | H128: used to generate Capacity and EIR curves as a function of temperatures. | P128: This data is used to generate Capacity and EIR curves as a flow fraction.
M129: Corrected | T129: Corrected | V129: Corrected
B130: CFM | C130: TWB, °F | D130: TDB, °F | E130: CAP, kBtuh | F130: Total POWER, kW | H130: CFM | I130: TWB, °F | J130: TDB, °F | K130: CAP, kBTuh | L130: Total POWER, kW | M130: GROSS CAP, kBtuh | N130: POWER, kW | P130: CFM | Q130: TWB, °F | R130: TDB, °F | S130: CAP, kBtuh | T130: Gross CAP, kBtuh | U130: POWER, kW | V130: Power (Compressor + Outdoor Coil Fan), kW
B131: 800 | C131: 72 | D131: 85 | E131: 43.6 | F131: 3.29 | H131: 1100 | I131: 72 | J131: 85 | K131: 46.9 | L131: 3.41 | M131: =$K131+($R$125*3.4121/1000) -> 48.640171 | N131: =$L131-$R$125/1000 -> 2.9 | P131: 800 | Q131: 67 | R131: 95 | S131: 37.2 | T131: =$S131+($R$125*3.412/1000) -> 38.94012 | U131: 3.41 | V131: =$U131-$R$125/1000 -> 2.9
B132: 800 | C132: 67 | D132: 85 | E132: 39.4 | F132: 3.19 | H132: 1100 | I132: 67 | J132: 85 | K132: 42.5 | L132: 3.31 | M132: =$K132+($R$125*3.4121/1000) -> 44.240171 | N132: =$L132-$R$125/1000 -> 2.8 | P132: 900 | Q132: 67 | R132: 95 | S132: 38.3 | T132: =$S132+($R$125*3.412/1000) -> 40.04012 | U132: 3.46 | V132: =$U132-$R$125/1000 -> 2.95
B133: 800 | C133: 63 | D133: 85 | E133: 36.4 | F133: 3.11 | H133: 1100 | I133: 63 | J133: 85 | K133: 39.3 | L133: 3.23 | M133: 41.040171 | N133: 2.72 | P133: 990 | Q133: 67 | R133: 95 | S133: 39.2 | T133: 40.94012 | U133: 3.5 | V133: 2.99
B134: 800 | C134: 62 | D134: 85 | E134: 35.6 | F134: 3.09 | H134: 1100 | I134: 62 | J134: 85 | K134: 38.6 | L134: 3.21 | M134: 40.340171 | N134: 2.7 | P134: 1100 | Q134: 67 | R134: 95 | S134: 40 | T134: 41.74012 | U134: 3.54 | V134: 3.03
B135: 800 | C135: 57 | D135: 85 | E135: 32.4 | F135: 3 | H135: 1100 | I135: 57 | J135: 85 | K135: 37 | L135: 3.17 | M135: 38.740171 | N135: 2.66 | P135: 1225 | Q135: 67 | R135: 95 | S135: 40.8 | T135: 42.54012 | U135: 3.58 | V135: 3.07
B136: 900 | C136: 72 | D136: 85 | E136: 44.9 | F136: 3.33 | H136: 1100 | I136: 72 | J136: 95 | K136: 44.2 | L136: 3.66 | M136: 45.940171 | N136: 3.15
B137: 900 | C137: 67 | D137: 85 | E137: 40.6 | F137: 3.23 | H137: 1100 | I137: 67 | J137: 95 | K137: 40 | L137: 3.54 | M137: 41.740171 | N137: 3.03
B138: 900 | C138: 63 | D138: 85 | E138: 37.6 | F138: 3.16 | H138: 1100 | I138: 63 | J138: 95 | K138: 37 | L138: 3.45 | M138: 38.740171 | N138: 2.94
B139: 900 | C139: 62 | D139: 85 | E139: 36.7 | F139: 3.13 | H139: 1100 | I139: 62 | J139: 95 | K139: 36.2 | L139: 3.43 | M139: 37.940171 | N139: 2.92
B140: 900 | C140: 57 | D140: 85 | E140: 34.1 | F140: 3.07 | H140: 1100 | I140: 57 | J140: 95 | K140: 35.2 | L140: 3.39 | M140: 36.940171 | N140: 2.88 | R140: Format Required By the Tool
B141: 990 | C141: 72 | D141: 85 | E141: 45.9 | F141: 3.37 | H141: 1100 | I141: 72 | J141: 105 | K141: 41.4 | L141: 3.9 | M141: 43.140171 | N141: 3.39 | R141: INPUT DATA FOR CAP AND EIR AS A FUNCTION OF FLOW
B142: 990 | C142: 67 | D142: 85 | E142: 41.6 | F142: 3.27 | H142: 1100 | I142: 67 | J142: 105 | K142: 37.5 | L142: 3.76 | M142: 39.240171 | N142: 3.25
B143: 990 | C143: 63 | D143: 85 | E143: 38.5 | F143: 3.19 | H143: 1100 | I143: 63 | J143: 105 | K143: 34.5 | L143: 3.65 | M143: 36.240171 | N143: 3.14 | R143: CFM | S143: CAP, kBtuh | T143: POWER, kW
B144: 990 | C144: 62 | D144: 85 | E144: 37.6 | F144: 3.17 | H144: 1100 | I144: 62 | J144: 105 | K144: 33.9 | L144: 3.63 | M144: 35.640171 | N144: 3.12 | R144: =P131 -> 800 | S144: =T131 -> 38.94012 | T144: =V131 -> 2.9
B145: 990 | C145: 57 | D145: 85 | E145: 35.5 | F145: 3.12 | H145: 1100 | I145: 57 | J145: 105 | K145: 33.4 | L145: 3.61 | M145: 35.140171 | N145: 3.1 | R145: =P132 -> 900 | S145: =T132 -> 40.04012 | T145: =V132 -> 2.95
B146: 1100 | C146: 72 | D146: 85 | E146: 46.9 | F146: 3.41 | H146: 1100 | I146: 72 | J146: 115 | K146: 38.7 | L146: 4.13 | M146: 40.440171 | N146: 3.62 | R146: =P133 -> 990 | S146: =T133 -> 40.94012 | T146: =V133 -> 2.99
B147: 1100 | C147: 67 | D147: 85 | E147: 42.5 | F147: 3.31 | H147: 1100 | I147: 67 | J147: 115 | K147: 34.9 | L147: 3.97 | M147: 36.640171 | N147: 3.46 | R147: =P134 -> 1100 | S147: =T134 -> 41.74012 | T147: =V134 -> 3.03
B148: 1100 | C148: 63 | D148: 85 | E148: 39.3 | F148: 3.23 | H148: 1100 | I148: 63 | J148: 115 | K148: 32.1 | L148: 3.85 | M148: 33.840171 | N148: 3.34 | R148: =P135 -> 1225 | S148: =T135 -> 42.54012 | T148: =V135 -> 3.07
B149: 1100 | C149: 62 | D149: 85 | E149: 38.6 | F149: 3.21 | H149: 1100 | I149: 62 | J149: 115 | K149: 31.6 | L149: 3.82 | M149: 33.340171 | N149: 3.31
B150: 1100 | C150: 57 | D150: 85 | E150: 37 | F150: 3.17 | H150: 1100 | I150: 57 | J150: 115 | K150: 31.5 | L150: 3.82 | M150: 33.240171 | N150: 3.31
B151: 1225 | C151: 72 | D151: 85 | E151: 47.8 | F151: 3.44
B152: 1225 | C152: 67 | D152: 85 | E152: 43.4 | F152: 3.35
B153: 1225 | C153: 63 | D153: 85 | E153: 40.2 | F153: 3.27
B154: 1225 | C154: 62 | D154: 85 | E154: 39.4 | F154: 3.25 | I154: Format Required By the Tool
B155: 1225 | C155: 57 | D155: 85 | E155: 38.5 | F155: 3.23 | I155: INPUT DATA FOR CAP AND EIR AS A FUNCTION OF TEMPERATURE
B156: 800 | C156: 72 | D156: 95 | E156: 41.2 | F156: 3.53
B157: 800 | C157: 67 | D157: 95 | E157: 37.2 | F157: 3.41 | I157: TWB, °F | J157: TDB, °F | K157: CAP, kBtuh | L157: Power, kW
B158: 800 | C158: 63 | D158: 95 | E158: 34.3 | F158: 3.32 | I158: =I131 -> 72 | J158: =J131 -> 85 | K158: =M131 -> 48.640171 | L158: =N131 -> 2.9
B159: 800 | C159: 62 | D159: 95 | E159: 33.6 | F159: 3.29 | I159: =I132 -> 67 | J159: 85 | K159: =M132 -> 44.240171 | L159: =N132 -> 2.8
B160: 800 | C160: 57 | D160: 95 | E160: 30.9 | F160: 3.21 | I160: =I133 -> 63 | J160: 85 | K160: 41.040171 | L160: 2.72
B161: 900 | C161: 72 | D161: 95 | E161: 42.4 | F161: 3.58 | I161: =I134 -> 62 | J161: 85 | K161: 40.340171 | L161: 2.7
B162: 900 | C162: 67 | D162: 95 | E162: 38.3 | F162: 3.46 | I162: =I135 -> 57 | J162: 85 | K162: 38.740171 | L162: 2.66
B163: 900 | C163: 63 | D163: 95 | E163: 35.4 | F163: 3.37 | I163: =I136 -> 72 | J163: 95 | K163: 45.940171 | L163: 3.15
B164: 900 | C164: 62 | D164: 95 | E164: 34.6 | F164: 3.34 | I164: =I137 -> 67 | J164: 95 | K164: 41.740171 | L164: 3.03
B165: 900 | C165: 57 | D165: 95 | E165: 32.5 | F165: 3.28 | I165: =I138 -> 63 | J165: 95 | K165: 38.740171 | L165: 2.94
B166: 990 | C166: 72 | D166: 95 | E166: 43.2 | F166: 3.62 | I166: =I139 -> 62 | J166: 95 | K166: 37.940171 | L166: 2.92
B167: 990 | C167: 67 | D167: 95 | E167: 39.2 | F167: 3.5 | I167: =I140 -> 57 | J167: 95 | K167: 36.940171 | L167: 2.88
B168: 990 | C168: 63 | D168: 95 | E168: 36.2 | F168: 3.41 | I168: =I141 -> 72 | J168: 105 | K168: 43.140171 | L168: 3.39
B169: 990 | C169: 62 | D169: 95 | E169: 35.4 | F169: 3.38 | I169: =I142 -> 67 | J169: 105 | K169: 39.240171 | L169: 3.25
B170: 990 | C170: 57 | D170: 95 | E170: 33.8 | F170: 3.33 | I170: =I143 -> 63 | J170: 105 | K170: 36.240171 | L170: 3.14
B171: 1100 | C171: 72 | D171: 95 | E171: 44.2 | F171: 3.66 | I171: =I144 -> 62 | J171: 105 | K171: 35.640171 | L171: 3.12
B172: 1100 | C172: 67 | D172: 95 | E172: 40 | F172: 3.54 | I172: =I145 -> 57 | J172: 105 | K172: 35.140171 | L172: 3.1
B173: 1100 | C173: 63 | D173: 95 | E173: 37 | F173: 3.45 | I173: =I146 -> 72 | J173: 115 | K173: 40.440171 | L173: 3.62
B174: 1100 | C174: 62 | D174: 95 | E174: 36.2 | F174: 3.43 | I174: =I147 -> 67 | J174: 115 | K174: 36.640171 | L174: 3.46
B175: 1100 | C175: 57 | D175: 95 | E175: 35.2 | F175: 3.39 | I175: =I148 -> 63 | J175: 115 | K175: 33.840171 | L175: 3.34
B176: 1225 | C176: 72 | D176: 95 | E176: 45 | F176: 3.7 | I176: =I149 -> 62 | J176: 115 | K176: 33.340171 | L176: 3.31
B177: 1225 | C177: 67 | D177: 95 | E177: 40.8 | F177: 3.58 | I177: =I150 -> 57 | J177: 115 | K177: 33.240171 | L177: 3.31
B178: 1225 | C178: 63 | D178: 95 | E178: 37.7 | F178: 3.49
B179: 1225 | C179: 62 | D179: 95 | E179: 37 | F179: 3.47
B180: 1225 | C180: 57 | D180: 95 | E180: 36.6 | F180: 3.46
B181: 800 | C181: 72 | D181: 105 | E181: 38.8 | F181: 3.76
B182: 800 | C182: 67 | D182: 105 | E182: 34.9 | F182: 3.62
B183: 800 | C183: 63 | D183: 105 | E183: 32.2 | F183: 3.52
B184: 800 | C184: 62 | D184: 105 | E184: 31.5 | F184: 3.49
B185: 800 | C185: 57 | D185: 105 | E185: 29.4 | F185: 3.4
B186: 900 | C186: 72 | D186: 105 | E186: 39.9 | F186: 3.81
B187: 900 | C187: 67 | D187: 105 | E187: 36 | F187: 3.68
B188: 900 | C188: 63 | D188: 105 | E188: 33.2 | F188: 3.57
B189: 900 | C189: 62 | D189: 105 | E189: 32.4 | F189: 3.54
B190: 900 | C190: 57 | D190: 105 | E190: 30.9 | F190: 3.48
B191: 990 | C191: 72 | D191: 105 | E191: 40.6 | F191: 3.86
B192: 990 | C192: 67 | D192: 105 | E192: 36.7 | F192: 3.72
B193: 990 | C193: 63 | D193: 105 | E193: 33.9 | F193: 3.61
B194: 990 | C194: 62 | D194: 105 | E194: 33.2 | F194: 3.58
B195: 990 | C195: 57 | D195: 105 | E195: 32.1 | F195: 3.54
B196: 1100 | C196: 72 | D196: 105 | E196: 41.4 | F196: 3.9
B197: 1100 | C197: 67 | D197: 105 | E197: 37.5 | F197: 3.76
B198: 1100 | C198: 63 | D198: 105 | E198: 34.5 | F198: 3.65
B199: 1100 | C199: 62 | D199: 105 | E199: 33.9 | F199: 3.63
B200: 1100 | C200: 57 | D200: 105 | E200: 33.4 | F200: 3.61
B201: 1225 | C201: 72 | D201: 105 | E201: 42.2 | F201: 3.94
B202: 1225 | C202: 67 | D202: 105 | E202: 38.1 | F202: 3.81
B203: 1225 | C203: 63 | D203: 105 | E203: 35.2 | F203: 3.7
B204: 1225 | C204: 62 | D204: 105 | E204: 34.7 | F204: 3.68
B205: 1225 | C205: 57 | D205: 105 | E205: 34.7 | F205: 3.68
B206: 800 | C206: 72 | D206: 115 | E206: 36.3 | F206: 3.99
B207: 800 | C207: 67 | D207: 115 | E207: 32.7 | F207: 3.83
B208: 800 | C208: 63 | D208: 115 | E208: 30.1 | F208: 3.7
B209: 800 | C209: 62 | D209: 115 | E209: 29.4 | F209: 3.67
B210: 800 | C210: 57 | D210: 115 | E210: 27.8 | F210: 3.6
B211: 900 | C211: 72 | D211: 115 | E211: 37.3 | F211: 4.04
B212: 900 | C212: 67 | D212: 115 | E212: 33.6 | F212: 3.88
B213: 900 | C213: 63 | D213: 115 | E213: 30.9 | F213: 3.76
B214: 900 | C214: 62 | D214: 115 | E214: 30.2 | F214: 3.73
B215: 900 | C215: 57 | D215: 115 | E215: 29.2 | F215: 3.68
B216: 990 | C216: 72 | D216: 115 | E216: 37.9 | F216: 4.08
B217: 990 | C217: 67 | D217: 115 | E217: 34.2 | F217: 3.92
B218: 990 | C218: 63 | D218: 115 | E218: 31.5 | F218: 3.8
B221: SAMPLE DATA II
B222: PACKAGED HEAT PUMP
B223: LENNOX KH Landmark RoofTop Unit: Model KHA036S4
O239: Outdoor Coil Fan Power: | R239: =250 -> 250 | S239: W
B241: Manufacturer's Data | H241: Capacity and Power data at various temperatures and rated flow rate. This data | O241: Capacity and Power Data at various supply air flow rates and rated temperatures.
H242: is used to generate Capacity and EIR curves as a function of temperatures. | O242: This data is used to generate Capacity and EIR curves as a flow fraction.
B243: TWB, °F | C243: TDB, °F | D243: CFM | E243: GROSS CAP, kBtuh | F243: Power, kW | H243: TWB, °F | I243: TDB, °F | J243: GROSS CAP, kBtuh | K243: Comp. Power, kW | L243: Power, kW | O243: TWB, °F | P243: TDB, °F | Q243: CFM | R243: Gross CAP, kBtuh | S243: Comp. Power, kW | T243: Power, kW
B244: 63 | C244: =85 -> 85 | D244: 960 | E244: 35.2 | F244: 2.26 | H244: 63 | I244: 85 | J244: 36.7 | K244: 2.27 | L244: =$K244+$R$239/1000 -> 2.52 | O244: 67 | P244: 95 | Q244: 960 | R244: 35.8 | S244: 2.58 | T244: =$S244+$R$239/1000 -> 2.83
B245: 63 | C245: =85 -> 85 | D245: 1200 | E245: 36.7 | F245: 2.27 | H245: 67 | I245: 85 | J245: 39 | K245: 2.28 | L245: =$K245+$R$239/1000 -> 2.53 | O245: 67 | P245: 95 | Q245: 1200 | R245: 37.1 | S245: 2.59 | T245: =$S245+$R$239/1000 -> 2.84
B246: 63 | C246: =85 -> 85 | D246: 1440 | E246: 37.9 | F246: 2.28 | H246: 71 | I246: 85 | J246: 41.5 | K246: 2.31 | L246: 2.56 | O246: 67 | P246: 95 | Q246: 1440 | R246: 37.9 | S246: 2.6 | T246: 2.85
B247: 67 | C247: =85 -> 85 | D247: 960 | E247: 37.6 | F247: 2.28 | H247: 63 | I247: 95 | J247: 34.9 | K247: 2.58 | L247: 2.83
B248: 67 | C248: =85 -> 85 | D248: 1200 | E248: 39 | F248: 2.28 | H248: 67 | I248: 95 | J248: 37.1 | K248: 2.59 | L248: 2.84
B249: 67 | C249: =85 -> 85 | D249: 1440 | E249: 39.9 | F249: 2.29 | H249: 71 | I249: 95 | J249: 39.5 | K249: 2.62 | L249: 2.87 | Q249: Format Required By the Tool
B250: 71 | C250: =85 -> 85 | D250: 960 | E250: 40.2 | F250: 2.3 | H250: 63 | I250: 105 | J250: 33.1 | K250: 2.93 | L250: 3.18 | Q250: INPUT DATA FOR CAP AND EIR AS A FUNCTION OF FLOW
B251: 71 | C251: =85 -> 85 | D251: 1200 | E251: 41.5 | F251: 2.31 | H251: 67 | I251: 105 | J251: 35 | K251: 2.94 | L251: 3.19
B252: 71 | C252: =85 -> 85 | D252: 1440 | E252: 42.4 | F252: 2.31 | H252: 71 | I252: 105 | J252: 37.4 | K252: 2.97 | L252: 3.22 | Q252: Flow, CFM | R252: CAP, kBtuh | S252: Power, kW
B253: 63 | C253: 95 | D253: 960 | E253: 33.6 | F253: 2.57 | H253: 63 | I253: 115 | J253: 31.2 | K253: 3.34 | L253: 3.59 | Q253: =Q244 -> 960 | R253: 35.8 | S253: =T244 -> 2.83
B254: 63 | C254: 95 | D254: 1200 | E254: 34.9 | F254: 2.58 | H254: 67 | I254: 115 | J254: 32.8 | K254: 3.35 | L254: 3.6 | Q254: 1200 | R254: 37.1 | S254: =T245 -> 2.84
B255: 63 | C255: 95 | D255: 1440 | E255: 36.3 | F255: 2.59 | H255: 71 | I255: 115 | J255: 35 | K255: 3.37 | L255: 3.62 | Q255: 1440 | R255: 37.9 | S255: =T246 -> 2.85
B256: 67 | C256: 95 | D256: 960 | E256: 35.8 | F256: 2.58
B257: 67 | C257: 95 | D257: 1200 | E257: 37.1 | F257: 2.59
B258: 67 | C258: 95 | D258: 1440 | E258: 37.9 | F258: 2.6 | I258: Format Required By the Tool
B259: 71 | C259: 95 | D259: 960 | E259: 38.3 | F259: 2.61 | I259: INPUT DATA FOR CAP AND EIR AS A FUNCTION OF TEMPERATURE
B260: 71 | C260: 95 | D260: 1200 | E260: 39.5 | F260: 2.62
B261: 71 | C261: 95 | D261: 1440 | E261: 40.3 | F261: 2.62 | I261: TWB, °F | J261: TDB, °F | K261: Gross CAP, kBtuh | L261: Power, kW
B262: 63 | C262: =105 -> 105 | D262: 960 | E262: 31.7 | F262: 2.92 | I262: =H244 -> 63 | J262: 85 | K262: =J244 -> 36.7 | L262: =L244 -> 2.52
B263: 63 | C263: =105 -> 105 | D263: 1200 | E263: 33.1 | F263: 2.93 | I263: 67 | J263: 85 | K263: 39 | L263: =L245 -> 2.53
B264: 63 | C264: =105 -> 105 | D264: 1440 | E264: 34.6 | F264: 2.94 | I264: 71 | J264: 85 | K264: 41.5 | L264: 2.56
B265: 67 | C265: =105 -> 105 | D265: 960 | E265: 33.9 | F265: 2.93 | I265: 63 | J265: 95 | K265: 34.9 | L265: 2.83
B266: 67 | C266: =105 -> 105 | D266: 1200 | E266: 35 | F266: 2.94 | I266: 67 | J266: 95 | K266: 37.1 | L266: 2.84
B267: 67 | C267: =105 -> 105 | D267: 1440 | E267: 35.8 | F267: 2.95 | I267: 71 | J267: 95 | K267: 39.5 | L267: 2.87
B268: 71 | C268: =105 -> 105 | D268: 960 | E268: 36.3 | F268: 2.96 | I268: 63 | J268: 105 | K268: 33.1 | L268: 3.18
B269: 71 | C269: =105 -> 105 | D269: 1200 | E269: 37.4 | F269: 2.97 | I269: 67 | J269: 105 | K269: 35 | L269: 3.19
B270: 71 | C270: =105 -> 105 | D270: 1440 | E270: 38.1 | F270: 2.98 | I270: 71 | J270: 105 | K270: 37.4 | L270: 3.22
B271: 63 | C271: =115 -> 115 | D271: 960 | E271: 29.8 | F271: 3.33 | I271: 63 | J271: 115 | K271: 31.2 | L271: 3.59
B272: 63 | C272: =115 -> 115 | D272: 1200 | E272: 31.2 | F272: 3.34 | I272: 67 | J272: 115 | K272: 32.8 | L272: 3.6
B273: 63 | C273: =115 -> 115 | D273: 1440 | E273: 32.7 | F273: 3.34 | I273: 71 | J273: 115 | K273: 35 | L273: 3.62
B274: 67 | C274: =115 -> 115 | D274: 960 | E274: 31.8 | F274: 3.34
B275: 67 | C275: =115 -> 115 | D275: 1200 | E275: 32.8 | F275: 3.35
B276: 67 | C276: =115 -> 115 | D276: 1440 | E276: 33.5 | F276: 3.36
B277: 71 | C277: =115 -> 115 | D277: 960 | E277: 34 | F277: 3.36
B278: 71 | C278: =115 -> 115 | D278: 1200 | E278: 35 | F278: 3.37
B279: 71 | C279: =115 -> 115 | D279: 1440 | E279: 35.6 | F279: 3.38

Sheet INPUT
A3: DX Coil Type: | B3: Cooling
A4: Independent Variable: | B4: Temperature
A5: Curve Type: | B5: Biquadratic
A6: Units: | B6: SI
A8: Curve Object Name: | B8: HP
A10: Rated Data: | B10: Rated Indoor Air Wet-Bulb Temperature | C10: Rated Outdoor Air Dry-Bulb Temperature | D10: Rated Gross Total Cooling Capacity | E10: Rated Compressor Plus Outdoor Coil Fan Power
B11: 19.444444 | C11: 35
A13: Performance Data: | B13: Indoor Air Wet-Bulb Temperature | C13: Outdoor Air Dry-Bulb Temperature | D13: Gross Total Cooling Capacity | E13: Compressor Plus Outdoor Coil Fan Power
B14: oC | C14: oC | D14: W | E14: W
B15: 72 | C15: 85 | D15: 48.640171 | E15: 2.9
B16: 67 | C16: 85 | D16: 44.240171 | E16: 2.8
B17: 63 | C17: 85 | D17: 41.040171 | E17: 2.72
B18: 62 | C18: 85 | D18: 40.340171 | E18: 2.7
B19: 57 | C19: 85 | D19: 38.740171 | E19: 2.66
B20: 72 | C20: 95 | D20: 45.940171 | E20: 3.15
B21: 67 | C21: 95 | D21: 41.740171 | E21: 3.03
B22: 63 | C22: 95 | D22: 38.740171 | E22: 2.94
B23: 62 | C23: 95 | D23: 37.940171 | E23: 2.92
B24: 57 | C24: 95 | D24: 36.940171 | E24: 2.88
B25: 72 | C25: 105 | D25: 43.140171 | E25: 3.39
B26: 67 | C26: 105 | D26: 39.240171 | E26: 3.25
B27: 63 | C27: 105 | D27: 36.240171 | E27: 3.14
B28: 62 | C28: 105 | D28: 35.640171 | E28: 3.12
B29: 57 | C29: 105 | D29: 35.140171 | E29: 3.1
B30: 72 | C30: 115 | D30: 40.440171 | E30: 3.62
B31: 67 | C31: 115 | D31: 36.640171 | E31: 3.46
B32: 63 | C32: 115 | D32: 33.840171 | E32: 3.34
B33: 62 | C33: 115 | D33: 33.340171 | E33: 3.31
B34: 57 | C34: 115 | D34: 33.240171 | E34: 3.31

Sheet OUTPUT
B2: Output File Name:
B3: Output File Path:
B6: ! 0.9957 | C6: R Squared
B7: Curve:Biquadratic
B8: HPCoolingCAPFTemp | C8: !- Name
B9: 1.407140455 | C9: !- Coefficient1 Constant
B10: -0.053135346 | C10: !- Coefficient2 x
B11: 0.0026360201 | C11: !- Coefficient3 x**2
B12: -0.0016726233 | C12: !- Coefficient4 y
B13: -7.7623e-06 | C13: !- Coefficient5 y**2
B14: -0.0004445573 | C14: !- Coefficient6 x*y
B15: 13.89 | C15: !- Minimum Value of x
B16: 22.22 | C16: !- Maximum Value of x
B17: 29.44 | C17: !- Minimum Value of y
B18: 46.11 | C18: !- Maximum Value of y
B19: 0.7964 | C19: !- Minimum Curve Output
B20: 1.1653 | C20: !- Maximum Curve Output
B21: Temperature | C21: !- Input Unit Type for X
B22: Temperature | C22: !- Input Unit Type for Y
B23: Dimensionless | C23: !- Output Unit Type
B26: ! 0.9984 | C26: R Squared
B27: Curve:Biquadratic
B28: HPCoolingEIRFTemp | C28: !- Name
B29: 0.1455690038 | C29: !- Coefficient1 Constant
B30: 0.0450927282 | C30: !- Coefficient2 x
B31: -0.0015553886 | C31: !- Coefficient3 x**2
B32: 0.0107096943 | C32: !- Coefficient4 y
B33: 0.0002343511 | C33: !- Coefficient5 y**2
B34: -0.0001413847 | C34: !- Coefficient6 x*y
B35: 13.89 | C35: !- Minimum Value of x
B36: 22.22 | C36: !- Maximum Value of x
B37: 29.44 | C37: !- Minimum Value of y
B38: 46.11 | C38: !- Maximum Value of y
B39: 0.8213 | C39: !- Minimum Curve Output
B40: 1.3718 | C40: !- Maximum Curve Output
B41: Temperature | C41: !- Input Unit Type for X
B42: Temperature | C42: !- Input Unit Type for Y
B43: Dimensionless | C43: !- Output Unit Type
